bitfinex-derivatives/quotes_BNBF0:USTF0_20250406
["timestamp","ask_amount","ask_price","bid_price","bid_amount"]
[1743930555142,0.871,589.58,588.91,0.28624425]
[1743930555744,0.871,589.58,588.91,0.58143844]
[1743930555939,0.871,589.58,588.91,0.29519419]
[1743930556144,0.871,589.58,588.92,0.28624085]
[1743930561542,0.871,589.58,588.91,0.28624085]
[1743930561746,0.871,589.58,588.91,0.58144005]
[1743930561947,0.871,589.58,588.92,0.28624085]
[1743930563944,0.871,589.58,588.91,0.28624085]
[1743930564348,0.871,589.58,588.9,0.33961623]
[1743930564649,0.871,589.58,588.91,0.28637444]
[1743930567250,1.4508859,589.58,588.91,0.28637444]
[1743930567451,0.871,589.58,588.91,0.28637444]
[1743930567654,0.871,589.58,588.9,0.33961623]
[1743930567854,0.871,589.58,588.91,0.28637734]
[1743930569456,0.871,589.58,588.9,0.33961623]
[1743930569655,0.871,589.58,588.91,0.28636896]
[1743930571050,0.871,589.58,588.9,0.33961623]
[1743930571251,0.871,589.58,588.91,0.28636931]
[1743930572757,0.871,589.58,588.9,0.33961623]
[1743930572957,0.871,589.58,588.92,0.28636976]
[1743930573151,0.871,589.58,588.93,0.28636976]
[1743930573354,0.871,589.58,588.91,0.28636976]
[1743930573558,0.871,589.58,588.92,0.28636976]
[1743930573758,0.871,589.58,588.91,0.28636976]
[1743930575558,0.871,589.58,588.91,1.55453633]
[1743930575852,0.871,589.58,588.92,0.28636976]
[1743930576258,0.871,589.58,588.91,1.26816657]
[1743930576458,0.871,589.58,588.92,0.28633325]
[1743930577060,0.58023257,589.57,588.92,0.28633325]
[1743930577359,0.474,589.58,588.92,0.28633325]
[1743930577862,0.474,589.58,588.91,1.26816657]
[1743930578064,0.474,589.58,588.9,0.33961623]
[1743930578065,0.474,589.58,588.92,0.28633245]
[1743930578363,0.58030657,589.57,588.93,0.28633245]
[1743930578557,0.474,589.58,588.9,0.33961623]
[1743930578760,0.58032118,589.57,588.91,0.28633343]
[1743930578959,0.474,589.58,588.91,0.28633343]
[1743930579161,0.58032105,589.57,588.91,0.28633343]
[1743930579363,0.474,589.58,588.91,0.28633343]
[1743930579563,0.58035234,589.57,588.91,0.28633343]
[1743930579763,0.474,589.58,588.91,0.28633343]
[1743930579962,0.58035237,589.57,588.91,0.28633343]
[1743930580163,0.474,589.58,588.91,0.28633343]
[1743930580464,0.58038526,589.57,588.91,0.28633343]
[1743930580664,0.849,589.58,588.91,0.28633343]
[1743930580861,0.58038529,589.57,588.91,0.28633343]
[1743930581065,0.849,589.58,588.91,0.28633343]
[1743930581267,0.58041973,589.57,588.91,0.28633343]
[1743930581561,0.849,589.58,588.91,0.28633343]
[1743930581762,0.58041973,589.57,588.91,0.28633343]
[1743930581968,0.849,589.58,588.91,0.28633343]
[1743930582162,0.58041973,589.57,588.91,0.28633343]
[1743930582365,0.849,589.58,588.91,0.28633343]
[1743930582566,0.58045703,589.57,588.91,0.28633343]
[1743930582767,0.849,589.58,588.91,0.28633343]
[1743930582966,0.58045703,589.57,588.9,0.33961623]
[1743930583162,0.849,589.58,588.91,0.28630794]
[1743930583367,0.5804958,589.57,588.91,0.28630794]
[1743930583668,0.849,589.58,588.91,0.28630794]
[1743930583870,0.5804958,589.57,588.91,0.28630794]
[1743930584064,0.849,589.58,588.91,0.28630794]
[1743930584268,0.58050977,589.57,588.91,0.28630794]
[1743930584469,0.58050977,589.56,588.91,0.28630794]
[1743930584670,0.849,589.58,588.91,0.28630794]
[1743930584871,0.58053553,589.57,588.91,0.28630794]
[1743930585171,0.58056564,589.56,588.91,0.28630794]
[1743930585371,0.849,589.58,588.91,0.28630794]
[1743930585571,0.58057945,589.57,588.91,0.28630794]
[1743930585771,0.58057945,589.56,588.91,0.28630794]
[1743930586072,0.849,589.58,588.91,0.28630794]
[1743930586271,0.58062436,589.57,588.91,0.28630794]
[1743930586470,0.58062436,589.56,588.91,0.28630794]
[1743930586673,0.58062436,589.55,588.91,0.28630794]
[1743930586871,0.849,589.58,588.91,0.28630794]
[1743930587071,0.58062454,589.57,588.91,0.28630794]
[1743930587272,0.58062454,589.56,588.91,0.28630794]
[1743930587571,0.58062454,589.55,588.91,0.28630794]
[1743930587773,0.58062454,589.54,588.91,0.28630794]
[1743930587975,0.849,589.58,588.91,0.28630794]
[1743930588169,0.58067945,589.57,588.91,0.28630794]
[1743930588374,0.58067945,589.56,588.91,0.28630794]
[1743930588673,0.58067945,589.55,588.91,0.28630794]
[1743930588875,0.375,589.58,588.91,0.28630794]
[1743930589174,0.58072002,589.57,588.91,0.28630794]
[1743930589374,0.58072002,589.56,588.91,0.28630794]
[1743930589575,0.58072002,589.55,588.91,0.28630794]
[1743930589776,0.58077377,589.54,588.91,0.28630794]
[1743930589976,0.375,589.58,588.91,0.28630794]
[1743930590177,0.58077635,589.57,588.91,0.28630794]
[1743930590372,0.58077635,589.56,588.91,0.28630794]
[1743930590573,0.58078401,589.55,588.91,0.28630794]
[1743930590778,0.58078401,589.54,588.91,0.28630794]
[1743930591073,0.375,589.58,588.91,0.28630794]
[1743930591278,0.58078896,589.57,588.91,0.28630794]
[1743930591476,0.58078896,589.56,588.91,0.28630794]
[1743930591682,0.58078896,589.55,588.92,0.28633603]
[1743930591979,1.08678896,589.54,588.93,0.28633603]
[1743930592278,0.506,589.54,588.94,0.28633603]
[1743930592478,0.506,589.54,588.91,0.28633603]
[1743930592679,0.506,589.54,588.92,0.28633603]
[1743930592879,0.506,589.54,588.91,0.28633603]
[1743930593074,0.506,589.54,588.92,0.28633603]
[1743930593276,0.506,589.54,588.9,0.33961623]
[1743930593574,0.506,589.54,588.91,0.28632878]
[1743930594979,0.506,589.54,588.9,0.33961623]
[1743930595182,0.506,589.54,588.91,0.28632942]
[1743930595875,0.58080369,589.53,588.91,0.28632942]
[1743930596079,0.58080356,589.52,588.91,0.28632942]
[1743930596280,0.506,589.54,588.91,0.28632942]
[1743930596481,0.58079762,589.53,588.91,0.28632942]
[1743930596679,0.506,589.54,588.9,0.33961623]
[1743930596875,0.58079765,589.53,588.91,0.28634008]
[1743930597075,0.506,589.54,588.91,0.28634008]
[1743930597275,0.58079464,589.53,588.91,0.28634008]
[1743930597476,0.506,589.54,588.91,0.28634008]
[1743930597675,0.58079502,589.53,588.91,0.28634008]
[1743930597877,0.506,589.54,588.91,0.28634008]
[1743930598076,0.580795,589.53,588.91,0.28634008]
[1743930598280,0.506,589.54,588.91,0.28634008]
[1743930598481,0.58079191,589.53,588.91,0.28634008]
[1743930598681,0.506,589.54,588.91,0.28634008]
[1743930598882,0.58079182,589.53,588.91,0.28634008]
[1743930599079,0.506,589.54,588.91,0.28634008]
[1743930600187,0.506,589.54,588.9,0.33961623]
[1743930600484,0.506,589.54,588.91,0.28632135]
[1743930602886,0.506,589.54,588.9,0.33961623]
[1743930603082,0.506,589.54,588.91,0.28631541]
[1743930603489,0.506,589.54,588.93,1.26816657]
[1743930603689,0.506,589.54,588.94,0.28631541]
[1743930604693,0.506,589.54,588.93,1.26816657]
[1743930604991,0.506,589.54,588.94,0.28631557]
[1743930605190,0.506,589.54,588.94,1.55448214]
[1743930605388,0.506,589.54,588.95,0.28631557]
[1743930606389,0.506,589.54,588.94,1.26816657]
[1743930606595,0.506,589.54,588.95,0.28632725]
[1743930607291,0.506,589.54,589.0,1.26816657]
[1743930607497,0.506,589.54,589.01,0.28632725]
[1743930607995,0.506,589.54,589.0,1.26816657]
[1743930608196,0.506,589.54,589.01,0.28632522]
[1743930611092,0.58124686,589.53,589.01,0.28632522]
[1743930611392,0.506,589.54,589.0,1.26816657]
[1743930611597,0.58125765,589.53,589.01,0.28632853]
[1743930611798,0.506,589.54,588.97,0.28632853]
[1743930611998,0.58125764,589.53,588.97,0.28632853]
[1743930612198,0.58134739,589.52,588.97,0.28632853]
[1743930612393,0.506,589.54,588.97,0.28632853]
[1743930612597,0.58135896,589.53,588.97,0.28632853]
[1743930612898,0.58135896,589.52,588.97,0.28632853]
[1743930613098,0.506,589.54,588.96,1.26816657]
[1743930613299,0.58138878,589.53,588.98,0.28635142]
[1743930613499,0.58138878,589.52,588.99,0.28635142]
[1743930613702,0.58140375,589.51,588.97,0.28635142]
[1743930613901,0.506,589.54,588.98,0.28635142]
[1743930614101,0.58140302,589.53,588.97,0.28635142]
[1743930614300,0.58140302,589.52,588.98,0.28635142]
[1743930614500,0.58140302,589.51,588.91,0.28635142]
[1743930614796,0.475,589.52,588.92,0.28635142]
[1743930615001,0.58143545,589.51,588.91,0.28635142]
[1743930615202,0.475,589.52,588.91,0.28635142]
[1743930615398,0.58146478,589.51,588.91,0.28635142]
[1743930615602,0.475,589.52,588.91,0.28635142]
[1743930615802,0.58147169,589.51,588.91,0.28635142]
[1743930616001,0.475,589.52,588.91,0.28635142]
[1743930616202,0.58147168,589.51,588.91,0.28635142]
[1743930616403,0.475,589.52,588.91,0.28635142]
[1743930616806,0.58151207,589.51,588.91,0.28635142]
[1743930617009,0.475,589.52,588.91,0.28635142]
[1743930617206,0.5815115,589.51,588.91,0.28635142]
[1743930617406,0.475,589.52,588.91,0.28635142]
[1743930617606,0.58156207,589.51,588.91,0.28635142]
[1743930617801,0.475,589.52,588.91,0.28635142]
[1743930618004,0.58156206,589.51,588.91,0.28635142]
[1743930618204,0.58160703,589.5,588.92,0.28636543]
[1743930618402,0.475,589.52,588.91,0.28636543]
[1743930618600,0.581612,589.51,588.92,0.28636543]
[1743930618801,0.396,589.51,588.92,0.28636543]
[1743930619105,0.396,589.51,588.93,0.28636543]
[1743930619306,0.396,589.51,588.91,0.28636543]
[1743930620005,0.396,589.51,588.92,0.28634033]
[1743930620205,0.396,589.51,588.93,0.28634033]
[1743930620403,0.396,589.51,588.91,0.28634033]
[1743930620604,0.396,589.51,588.92,0.28634033]
[1743930620802,0.396,589.51,588.91,0.28634033]
[1743930623711,0.396,589.51,588.92,1.26816657]
[1743930624109,0.396,589.51,588.93,0.28634033]
[1743930625811,0.396,589.51,589.08,1.26816657]
[1743930626107,0.396,589.51,589.09,0.28634033]
[1743930628310,0.396,589.51,589.03,0.28634033]
[1743930628512,0.396,589.51,589.04,0.28634033]
[1743930628713,0.396,589.51,589.03,0.28634033]
[1743930628914,0.396,589.51,589.05,0.28634033]
[1743930629113,0.396,589.51,589.06,0.28634033]
[1743930629312,0.396,589.51,589.03,0.28634033]
[1743930629511,0.396,589.51,589.07,0.28634033]
[1743930629714,0.396,589.51,589.08,0.28634033]
[1743930630015,0.396,589.51,589.09,0.28634033]
[1743930630314,0.396,589.51,589.1,0.28642989]
[1743930630516,0.396,589.51,589.03,0.28642989]
[1743930630713,0.396,589.51,589.04,0.28642989]
[1743930630914,0.396,589.51,589.05,0.28642989]
[1743930631114,0.396,589.51,589.03,0.28642989]
[1743930631315,0.396,589.51,589.04,0.28642989]
[1743930631510,0.396,589.51,589.03,0.28642989]
[1743930632318,0.396,589.51,589.02,0.28642989]
[1743930633319,0.396,589.51,589.01,1.26816657]
[1743930633520,0.396,589.51,589.02,0.28646708]
[1743930635819,0.396,589.51,588.96,0.28646708]
[1743930636020,0.396,589.51,588.97,0.28646708]
[1743930636212,0.396,589.51,588.96,0.28646708]
[1743930636418,0.396,589.51,588.95,1.26816657]
[1743930636419,0.396,589.51,588.97,0.28646708]
[1743930636615,0.396,589.51,588.96,0.28646708]
[1743930636921,0.396,589.51,588.97,0.28646708]
[1743930637221,0.396,589.51,588.96,0.28646708]
[1743930637418,0.396,589.51,588.97,0.28646708]
[1743930637614,0.396,589.51,588.96,0.28646708]
[1743930637818,0.396,589.51,588.97,0.28646708]
[1743930638119,0.396,589.51,588.98,0.28646708]
[1743930638321,0.396,589.51,589.05,1.26816657]
[1743930638521,0.396,589.51,589.06,0.28647285]
[1743930640217,0.396,589.51,589.05,1.26816657]
[1743930640422,0.396,589.51,589.07,0.28647681]
[1743930640621,0.58166412,589.5,589.08,0.28647681]
[1743930640817,0.58166412,589.49,589.06,0.28647681]
[1743930641018,0.58166412,589.48,589.05,1.26816657]
[1743930641223,0.58205243,589.47,589.05,1.26816657]
[1743930641417,0.396,589.51,589.05,1.26816657]
[1743930642919,0.478,589.5,589.05,1.26816657]
[1743930644522,0.58204862,589.49,589.05,1.26816657]
[1743930644725,0.58204862,589.48,589.05,1.26816657]
[1743930644926,0.58204862,589.47,589.05,1.26816657]
[1743930645127,0.478,589.5,589.05,1.26816657]
[1743930645325,0.58204738,589.49,589.05,1.26816657]
[1743930645523,0.58204738,589.48,589.05,1.26816657]
[1743930645725,0.58204738,589.47,589.05,1.26816657]
[1743930646026,0.478,589.5,589.05,1.26816657]
[1743930646226,0.58204917,589.49,589.05,1.26816657]
[1743930646424,0.58204917,589.48,589.02,1.26816657]
[1743930646627,0.58204917,589.47,589.03,0.28646022]
[1743930646828,0.478,589.5,589.03,0.28646022]
[1743930647028,0.58205069,589.49,589.03,0.28646022]
[1743930647230,0.58205069,589.48,589.03,0.28646022]
[1743930647425,0.58205069,589.47,589.03,0.28646022]
[1743930647626,0.478,589.5,589.03,0.28646022]
[1743930647929,0.5820511,589.49,589.03,0.28646022]
[1743930648127,0.5820511,589.48,589.03,0.28646022]
[1743930648328,0.5820511,589.47,589.03,0.28646022]
[1743930648527,0.478,589.5,589.03,0.28646022]
[1743930648727,0.58205101,589.49,589.03,0.28646022]
[1743930648927,0.58205101,589.48,589.03,0.28646022]
[1743930649126,0.58205101,589.47,589.03,0.28646022]
[1743930649326,0.478,589.5,589.03,0.28646022]
[1743930649529,0.58205187,589.49,589.03,0.28646022]
[1743930649727,0.58205187,589.48,589.04,0.28646022]
[1743930649929,0.58205187,589.47,588.91,0.28646022]
[1743930650131,0.478,589.5,588.9,0.33961623]
[1743930650331,0.58205128,589.49,588.91,0.28646068]
[1743930650528,0.58205288,589.48,588.91,0.28646068]
[1743930650730,0.58205288,589.47,588.91,0.28646068]
[1743930650931,0.478,589.5,588.91,0.28646068]
[1743930650932,0.58206476,589.46,588.91,0.28646068]
[1743930651133,0.478,589.5,588.91,0.28646068]
[1743930651331,0.58206385,589.49,588.91,0.28646068]
[1743930651535,0.58206385,589.48,588.91,0.28646068]
[1743930651735,0.58206385,589.47,588.91,0.28646068]
[1743930651935,0.478,589.5,588.9,0.33961623]
[1743930652137,0.478,589.5,588.91,0.28635179]
[1743930652937,0.42,589.49,588.91,0.28635179]
[1743930653537,0.42,589.49,588.9,0.33961623]
[1743930653738,0.42,589.49,588.91,0.28632842]
[1743930654238,0.42,589.49,588.9,0.33961623]
[1743930654437,0.42,589.49,588.91,0.2863223]
[1743930656135,0.42,589.49,588.9,0.33961623]
[1743930656441,0.58192862,589.48,588.9,0.33961623]
[1743930656638,0.58180643,589.47,588.9,0.33961623]
[1743930656838,0.42,589.49,588.9,0.33961623]
[1743930657040,0.58179821,589.48,588.9,0.33961623]
[1743930657237,0.42,589.49,588.9,0.33961623]
[1743930658242,1.00161198,589.49,588.9,0.33961623]
[1743930659242,0.42,589.49,588.9,0.33961623]
[1743930660045,0.58161198,589.48,588.9,0.33961623]
[1743930660240,0.58161198,589.47,588.9,0.33961623]
[1743930660445,0.58161198,589.46,588.9,0.33961623]
[1743930660644,0.58161198,589.45,588.9,0.33961623]
[1743930660843,0.58161198,589.44,588.9,0.33961623]
[1743930661044,0.58161198,589.43,588.9,0.33961623]
[1743930661244,0.42,589.49,588.9,0.33961623]
[1743930661440,0.58153835,589.48,588.91,0.28635585]
[1743930661645,0.58153835,589.47,588.9,0.33961623]
[1743930661843,0.58153835,589.46,588.91,0.28634432]
[1743930662043,0.58153835,589.45,588.91,0.28634432]
[1743930662249,0.58153835,589.44,588.91,0.28634432]
[1743930662542,0.58153835,589.43,588.91,0.28634432]
[1743930662749,0.42,589.49,588.91,0.28634432]
[1743930662946,0.58141255,589.48,588.91,0.28634432]
[1743930663143,0.58141255,589.47,588.91,0.28634432]
[1743930663446,0.58141255,589.46,588.91,0.28634432]
[1743930663646,0.58141255,589.45,588.91,0.28634432]
[1743930663844,0.58141255,589.44,588.91,0.28634432]
[1743930664043,0.42,589.49,588.91,0.28634432]
[1743930664350,0.5813175,589.48,588.91,0.28634432]
[1743930664549,0.5813175,589.47,588.91,0.28634432]
[1743930664743,0.5813175,589.46,588.91,0.28634432]
[1743930664942,0.5813175,589.45,588.91,0.28634432]
[1743930665146,0.5813175,589.44,588.9,0.33961623]
[1743930665346,0.42,589.49,588.91,0.2863546]
[1743930665545,0.58126846,589.48,588.91,0.2863546]
[1743930665848,0.58126846,589.47,588.91,0.2863546]
[1743930666046,0.58126846,589.46,588.91,0.2863546]
[1743930666251,0.58126846,589.45,588.91,0.2863546]
[1743930666447,0.58123,589.44,588.91,0.2863546]
[1743930666649,0.42,589.49,588.91,0.2863546]
[1743930666851,0.58122757,589.48,588.91,0.2863546]
[1743930667051,0.42,589.49,588.91,0.2863546]
[1743930667347,0.547,589.48,588.91,0.2863546]
[1743930668353,0.547,589.48,588.9,0.33961623]
[1743930673256,0.547,589.48,588.91,0.28628379]
[1743930675056,0.547,589.48,588.91,1.55445036]
[1743930675255,0.547,589.48,588.92,0.28628379]
[1743930677055,0.547,589.48,588.93,0.2861137]
[1743930677356,0.547,589.48,588.92,0.2861137]
[1743930677652,0.547,589.48,588.93,0.2861137]
[1743930677854,0.547,589.48,588.9,0.33961623]
[1743930677855,0.547,589.48,588.94,1.55428027]
[1743930678051,0.547,589.48,588.95,0.2861137]
[1743930678455,0.547,589.48,588.94,1.26816657]
[1743930678656,0.547,589.48,588.95,0.2861323]
[1743930679453,0.42,589.49,588.95,0.2861323]
[1743930679858,0.58048284,589.71,588.95,0.2861323]
[1743930680059,0.58048284,589.7,588.95,0.2861323]
[1743930680259,0.58048284,589.69,588.91,0.2861323]
[1743930680461,0.29519168,589.86,588.92,0.2861323]
[1743930680657,0.58033472,589.85,588.91,0.2861323]
[1743930680854,0.58033472,589.84,588.91,0.2861323]
[1743930681056,0.58033472,589.83,588.91,0.2861323]
[1743930681255,0.58033472,589.82,588.91,0.2861323]
[1743930681458,0.58033472,589.81,588.91,0.2861323]
[1743930681657,0.58033472,589.8,588.91,0.2861323]
[1743930681858,0.58033472,589.79,588.92,0.28613465]
[1743930682060,0.58033472,589.78,588.91,0.28613465]
[1743930682261,0.58033472,589.77,588.92,0.28613465]
[1743930682462,0.58033472,589.76,588.91,0.28613465]
[1743930682662,0.58033472,589.75,588.91,0.28613465]
[1743930682864,0.58020769,589.74,588.91,0.28613465]
[1743930683059,0.58020769,589.73,588.91,0.28613465]
[1743930683261,0.58020769,589.74,588.91,0.28613465]
[1743930683463,0.58020769,589.74,588.9,0.33961623]
[1743930683765,0.58020769,589.74,588.91,0.28613383]
[1743930684065,0.58020769,589.74,588.9,0.33961623]
[1743930684265,0.58020769,589.74,588.91,0.28613293]
[1743930684561,0.58009353,589.74,588.91,0.28613293]
[1743930685166,0.58009353,589.74,588.9,0.33961623]
[1743930685467,0.416,589.75,588.91,0.28613401]
[1743930685661,0.99609353,589.75,588.91,0.28613401]
[1743930685861,0.416,589.75,588.91,0.28613401]
[1743930686061,0.99609353,589.75,588.91,0.28613401]
[1743930686360,0.416,589.75,588.91,0.28613401]
[1743930686561,0.99599179,589.75,588.91,0.28613401]
[1743930686761,0.416,589.75,588.9,0.33961623]
[1743930686965,0.99599179,589.75,588.91,0.28613284]
[1743930687165,0.416,589.75,588.91,0.28613284]
[1743930690268,0.416,589.75,588.91,0.6257433]
[1743930690467,0.416,589.75,588.92,0.28613284]
[1743930690868,0.416,589.75,588.93,0.33959893]
[1743930691067,0.416,589.75,588.94,0.28613284]
[1743930691768,0.416,589.75,588.93,0.33959893]
[1743930691968,0.416,589.75,588.94,0.28590177]
[1743930694065,0.416,589.75,588.93,0.63474305]
[1743930694264,0.416,589.75,588.94,0.28589992]
[1743930695264,0.416,589.75,588.95,0.28590837]
[1743930695468,0.416,589.75,588.94,0.28590837]
[1743930696877,0.564,589.77,588.94,0.28590837]
[1743930698174,0.564,589.77,588.95,0.28589635]
[1743930698373,0.564,589.77,588.94,0.28589635]
[1743930698574,0.564,589.77,588.95,0.28589635]
[1743930698778,0.564,589.77,588.94,0.28589635]
[1743930700780,0.381,589.76,588.94,0.28589635]
[1743930701578,0.381,589.76,588.93,0.63473804]
[1743930701779,0.381,589.76,588.94,0.28588363]
[1743930706680,0.381,589.76,588.93,0.63474305]
[1743930706878,0.381,589.76,588.94,0.28585204]
[1743930707182,0.381,589.76,588.96,1.26816657]
[1743930707382,0.381,589.76,588.97,0.28585204]
[1743930708383,0.381,589.76,588.98,0.28581427]
[1743930708579,0.381,589.76,588.97,0.28581427]
[1743930708979,0.381,589.76,589.13,1.26816657]
[1743930709384,0.381,589.76,589.14,0.28577093]
[1743930709984,0.381,589.76,589.13,1.26816657]
[1743930710181,0.381,589.76,589.14,0.28577122]
[1743930711182,0.381,589.76,589.16,1.26816657]
[1743930711381,0.381,589.76,589.17,0.28577122]
[1743930715380,0.381,589.76,589.13,0.28577122]
[1743930715582,0.381,589.76,589.14,0.28577122]
[1743930715981,0.381,589.76,589.12,1.26816657]
[1743930716883,0.381,589.76,589.13,0.28583405]
[1743930717283,0.381,589.76,589.12,1.26816657]
[1743930717887,0.381,589.76,588.89,1.26816657]
[1743930718088,0.381,589.76,588.94,0.28578127]
[1743930719387,0.57959083,589.75,588.94,0.28578127]
[1743930719589,0.57959083,589.74,588.94,0.28578127]
[1743930719787,0.57959083,589.73,588.94,0.28578127]
[1743930719984,0.57959083,589.72,588.93,0.63477309]
[1743930720184,0.57959083,589.71,588.94,0.28579999]
[1743930720385,0.57959083,589.7,588.94,0.28579999]
[1743930720589,0.57959083,589.69,588.94,0.28579999]
[1743930720891,0.381,589.76,588.94,0.28579999]
[1743930720892,0.57959083,589.75,588.94,0.28579999]
[1743930721092,0.57959083,589.74,588.94,0.28579999]
[1743930721293,0.57959083,589.73,588.94,0.28579999]
[1743930721492,0.57959083,589.72,588.94,0.28579999]
[1743930721691,0.57959083,589.71,588.94,0.28579999]
[1743930721895,0.57959083,589.7,588.94,0.28579999]
[1743930722098,0.57959083,589.69,588.94,0.28579999]
[1743930722290,0.57959083,589.68,588.94,0.28579999]
[1743930722495,0.57959083,589.67,588.94,0.28579999]
[1743930722794,0.57959083,589.75,588.94,0.28579999]
[1743930723090,0.57959083,589.74,588.94,0.28579999]
[1743930723295,0.57959083,589.73,588.94,0.28579999]
[1743930723498,0.381,589.76,588.94,0.28579999]
[1743930723499,0.57959083,589.72,588.94,0.28579999]
[1743930723692,0.57959083,589.71,588.94,0.28579999]
[1743930723891,0.57959083,589.7,588.94,0.28579999]
[1743930724093,0.57959083,589.69,588.94,0.28579999]
[1743930724292,0.57959083,589.68,588.94,0.28579999]
[1743930724597,0.57959083,589.67,588.95,0.2857991]
[1743930724798,0.57959083,589.66,588.94,0.2857991]
[1743930725000,0.381,589.76,588.95,0.2857991]
[1743930725298,0.58005463,589.75,588.96,0.2857991]
[1743930725498,0.58005463,589.74,588.94,0.2857991]
[1743930725793,0.58005463,589.73,588.95,0.2857991]
[1743930725997,0.58005463,589.72,588.93,0.63477434]
[1743930726198,0.58005463,589.71,588.94,0.28580267]
[1743930726399,0.58005463,589.7,588.94,0.28580267]
[1743930726700,0.58005463,589.69,588.94,0.28580267]
[1743930726896,0.58005463,589.68,588.94,0.28580267]
[1743930727095,0.58005463,589.67,588.94,0.28580267]
[1743930727294,0.58005463,589.66,588.94,0.28580267]
[1743930727498,0.58005463,589.75,588.94,0.28580267]
[1743930727699,0.58005463,589.74,588.93,0.63477434]
[1743930728000,0.58005463,589.75,588.94,0.28579984]
[1743930728299,0.58005463,589.74,588.94,0.28579984]
[1743930728497,0.58005463,589.73,588.94,0.28579984]
[1743930728699,0.58005463,589.72,588.94,0.28579984]
[1743930728901,0.58005463,589.75,588.94,0.28579984]
[1743930729099,0.58005463,589.74,588.94,0.28579984]
[1743930729295,0.58005463,589.73,588.94,0.28579984]
[1743930729499,0.58005463,589.72,588.93,0.33959893]
[1743930729802,0.58005463,589.71,588.94,0.28579948]
[1743930729998,0.58005463,589.76,588.94,0.28579948]
[1743930730196,0.58005463,589.75,588.94,0.28579948]
[1743930730396,0.58005463,589.74,588.94,0.28579948]
[1743930730599,0.58005463,589.73,588.94,0.28579948]
[1743930730801,0.58005463,589.72,588.94,0.28579948]
[1743930731001,0.58005463,589.71,588.94,0.28579948]
[1743930731202,0.58105902,589.7,588.93,0.63477309]
[1743930731403,0.58105902,589.69,588.94,0.28579676]
[1743930731703,0.58105902,589.76,588.94,0.28579676]
[1743930731901,0.58105902,589.75,588.94,0.28579676]
[1743930732106,0.58105902,589.74,588.94,0.28579676]
[1743930732301,0.58105902,589.73,588.94,0.28579676]
[1743930732504,0.58105902,589.72,588.94,0.28579676]
[1743930732705,0.58105902,589.71,588.94,0.28579676]
[1743930732906,0.58105902,589.7,588.94,0.28579676]
[1743930733104,0.58105902,589.69,588.94,0.28579676]
[1743930733302,0.58119005,589.68,588.94,0.28579676]
[1743930733504,0.58119005,589.67,588.94,0.28579676]
[1743930733703,0.58119005,589.72,588.94,0.28579676]
[1743930733906,0.58119005,589.71,588.94,0.28579676]
[1743930734208,0.58119005,589.7,588.94,0.28579676]
[1743930734407,0.58119005,589.69,588.94,0.28579676]
[1743930734609,0.58119005,589.68,588.94,0.28579676]
[1743930734808,0.58119005,589.67,588.94,0.28579676]
[1743930735009,0.58119005,589.66,588.94,0.28579676]
[1743930735205,0.58120082,589.65,588.94,0.28579676]
[1743930735410,0.58120082,589.64,588.94,0.28579676]
[1743930735608,0.58120082,589.63,588.94,0.28579676]
[1743930735806,0.58120082,589.62,588.94,0.28579676]
[1743930736006,0.58120082,589.61,588.94,0.28579676]
[1743930736208,0.558,589.73,588.94,0.28579676]
[1743930736409,0.58118571,589.72,588.94,0.28579676]
[1743930736706,0.58118571,589.71,588.94,0.28579676]
[1743930736910,0.58118571,589.7,588.94,0.28579676]
[1743930737109,0.58118571,589.69,588.94,0.28579676]
[1743930737309,0.58118571,589.68,588.94,0.28579676]
[1743930737511,0.58118571,589.67,588.94,0.28579676]
[1743930737705,0.58118571,589.66,588.93,0.63477809]
[1743930737911,0.558,589.73,588.94,0.28579809]
[1743930737912,0.58118571,589.65,588.94,0.28579809]
[1743930738207,0.58118571,589.64,588.96,1.26816657]
[1743930738411,0.58118571,589.63,588.97,0.28579809]
[1743930738611,0.58118571,589.62,588.97,0.28579809]
[1743930738811,0.58118571,589.61,588.97,0.28579809]
[1743930739013,0.558,589.73,588.97,0.28579809]
[1743930739210,0.58116233,589.72,588.97,0.28579809]
[1743930739408,0.58116233,589.71,588.97,0.28579809]
[1743930739707,0.58116233,589.7,588.98,0.28578542]
[1743930739915,0.58116233,589.69,588.97,0.28578542]
[1743930740213,0.58116233,589.68,588.97,0.28578542]
[1743930740414,0.58116233,589.67,588.97,0.28578542]
[1743930740613,0.58114416,589.66,588.97,0.28578542]